Cogmind - Beta 17 @@@ ROGUE MODE // 2026.06.29 @ 12:39:01 Player: teag2 Result: Destroyed by S-27 Virus with Autogun Performance ------------- Evolutions (6) 3000 Regions Visited (15) 3000 Robots Destroyed (119) 595 Value Destroyed (5401) 5401 Prototype IDs (16) 320 Alien Tech Used (0) 0 Bonus (1290) 1290 TOTAL SCORE: 13606 Bonus ------- High Alert Combat Kills 224 Follower Combat Kills 166 Entered Garrisons 400 Used RIF Installer 500 Cogmind --------- Core Integrity 0/1150 Matter 243/300 Energy 99/100 System Corruption 13% Temperature Cool (0) Movement Core (50) Location -4/Factory Parts ------- > --- POWER (2) -------- (None) > --- PROPULSION (6) --- (None) > --- UTILITY (9) ------ (None) > --- WEAPON (2) ------- (None) > --- INVENTORY (5) ---- Fission Core Cooled Aerolev Unit Gyrokinetic Inverter Layered Heavy Armor Plating Peak State ------------ > --- POWER ------------ Cold Fusion Reactor Micro Fission Core > --- PROPULSION ------- Cooled Aerolev Unit Antigrav Array Nuclear Pulse Array > --- UTILITY ---------- Improved Coolant Injector Enhanced Optical Array Advanced Sensor Array Advanced Signal Interpreter Advanced ECM Suite Improved Propulsion Shielding Hacking Suite System Shield > --- WEAPON ----------- Wave Gun Carbide Saw > --- INVENTORY -------- Fission Core Xenon Bombardment Thruster Nuclear Pulse Array Improved Reaction Control System [Rating: 93] Favorites ----------- Power Micro Fission Core Engine Ion Engine Power Core Micro Fission Core Reactor Cold Fusion Reactor Propulsion Light Treads Treads Light Treads Leg Improved Aluminum Leg Wheel Wheel Hover Unit Airjet Flight Unit Nuclear Pulse Array Utility Hacking Suite Device Weapon Cycler Storage Large Storage Unit Processor Enhanced Optical Array Hackware Hacking Suite Protection Hardened Medium Armor Plating Weapon Heavy Ion Cannon Energy Gun Wave Gun Energy Cannon Heavy Ion Cannon Ballistic Gun Heavy Assault Rifle Launcher Micro-nuke Launcher Special Weapon Remote Datajack Slashing Weapon Axe Build | -11 -10 -10 -10 -8 -8 -7 -7 -7 -6 -5 -5 -5 -5 -5 -4 ------- Run | Yrd Mat Min Sub Mat Gar Fac Was Fac Fac Fac Gar Fac Upp Upp Fac Slots Evolved 12 | . . . . 4 . 2 . . 2 2 . . . . 2 Power 1 | . . . . . . . . . 1 . . . . . . Propulsion 4 | . . . . 2 . 1 . . . . . . . . 1 Utility 7 | . . . . 2 . 1 . . 1 2 . . . . 1 Weapon . | . . . . . . . . . . . . . . . . Parts Attached 149 | 7 7 1 1 22 12 28 9 19 14 1 1 16 3 . 8 Power 20 | 2 1 . . 2 1 3 2 1 4 . . 3 1 . . Engine 6 | 2 1 . . . 1 . 1 1 . . . . . . . Core 12 | . . . . 2 . 3 . . 3 . . 3 1 . . Reactor 2 | . . . . . . . 1 . 1 . . . . . . Propulsion 53 | 2 3 . 1 6 7 10 4 8 4 . . 3 1 . 4 Treads 13 | 2 . . 1 . 3 7 . . . . . . . . . Leg 14 | . 2 . . 6 4 2 . . . . . . . . . Wheel 2 | . 1 . . . . 1 . . . . . . . . . Hover 13 | . . . . . . . 4 4 4 . . . . . 1 Flight 11 | . . . . . . . . 4 . . . 3 1 . 3 Utility 44 | 1 1 1 . 8 2 8 1 8 4 1 . 6 . . 3 Device 17 | . . . . 4 1 1 1 3 2 1 . 3 . . 1 Storage 2 | 1 1 . . . . . . . . . . . . . . Processor 4 | . . . . 1 . 1 . . 1 . . 1 . . . Hackware 8 | . . . . . . 3 . 4 . . . . . . 1 Protection 13 | . . 1 . 3 1 3 . 1 1 . . 2 . . 1 Artifact . | . . . . . . . . . . . . . . . . Weapon 32 | 2 2 . . 6 2 7 2 2 2 . 1 4 1 . 1 Energy Gun 10 | 1 . . . 1 . 3 1 . . . 1 2 1 . . Energy Cannon 3 | . . . . 2 1 . . . . . . . . . . Ballistic Gun 12 | 1 2 . . 3 1 3 . 1 1 . . . . . . Ballistic Cannon . | . . . . . . . . . . . . . . . . Launcher 2 | . . . . . . . . . 1 . . . . . 1 Special Weapon 2 | . . . . . . 1 . 1 . . . . . . . Impact Weapon . | . . . . . . . . . . . . . . . . Slashing Weapon 3 | . . . . . . . 1 . . . . 2 . . . Piercing Weapon . | . . . . . . . . . . . . . . . . Special Melee Weapon . | . . . . . . . . . . . . . . . . Unidentified Prototypes 10 | . . . . 2 . 1 3 1 2 . . 1 . . . Parts Lost 87 | . 2 . 5 4 10 21 4 2 4 2 9 6 4 . 14 Power 16 | . 1 . 1 2 1 4 . 1 . . 2 1 1 . 2 Propulsion 32 | . 1 . 1 1 4 8 2 1 4 1 1 1 1 . 6 Utility 22 | . . . 1 1 2 3 2 . . 1 3 3 1 . 5 Weapon 17 | . . . 2 . 3 6 . . . . 3 1 1 . 1 Highest Loss Streak 15 | . 1 . 3 1 6 15 2 1 2 2 6 3 2 . 11 To Critical Strikes 2 | . . . . 1 . 1 . . . . . . . . . Average Backups 9 | 1 10 14 14 13 13 13 5 4 4 2 2 3 4 2 3 Power 1 | . 2 2 2 1 2 1 . . 1 1 1 . 1 . . Propulsion 2 | 1 4 6 5 3 2 1 . . . . . 1 1 . . Utility 4 | . 3 4 5 6 7 7 3 2 2 1 1 1 1 1 2 Weapon 1 | . 1 2 2 1 . 1 . . . . . . 1 1 . Tool/Special . | . . . . . . . . . . . . . . . . Unused Backups 27 | . 2 1 . 8 2 3 2 . 3 . . 3 . . 3 Power 3 | . . . . 1 . . . . 1 . . . . . 1 Propulsion 6 | . 2 . . . 2 1 . . . . . . . . 1 Utility 11 | . . 1 . 4 . 1 2 . . . . 3 . . . Weapon 7 | . . . . 3 . 1 . . 2 . . . . . 1 Tool/Special . | . . . . . . . . . . . . . . . . Average Slot Usage (%) 86 | . 87 100 88 96 99 94 47 75 88 91 70 75 80 88 69 Engine 3 | . 13 14 14 2 2 4 1 6 1 . . . . . . Core 4 | . . . . 6 6 1 . . 4 5 3 4 9 11 8 Treads 9 | . 20 14 21 . 17 31 . . . . . . . . . Leg 8 | . . . . 35 18 3 . . . . . . . . . Wheel 1 | . 7 14 6 . . . . . . . . . . . . Hover 5 | . . . . . . . 15 21 24 21 14 10 . 5 6 Flight 2 | . . . . . . . . 3 . . . 5 15 17 13 Device 10 | . . . . 14 18 8 10 9 7 16 15 13 20 17 10 Storage 5 | . 14 14 14 9 9 7 1 . . . . . . . . Processor 4 | . . . . 1 . 6 7 5 2 5 5 10 11 11 9 Hackware 6 | . . . . . . 4 7 15 20 17 14 11 11 11 11 Protection 5 | . 3 14 5 8 8 7 . 1 8 4 . 2 . . . Energy Gun 1 | . 6 . . . . . . . . . 2 5 2 5 . Energy Cannon 4 | . . . . 6 16 10 . . . . . . . . . Ballistic Gun 6 | . 21 28 26 10 1 3 . 2 11 5 2 . . . . Peak Build Rating 93 | 6 11 11 11 34 35 45 40 46 72 79 73 93 86 75 91 Average Rating 42 | 4 8 10 9 28 33 38 27 35 57 77 63 78 76 75 72 On Entrance 37 | . 6 11 11 5 34 32 19 15 42 72 72 46 86 75 75 Avg Prop Armor Cover (%) 5 | . 10 9 11 7 3 7 . 7 . . . 5 4 4 4 Naked Turns 41 | . . . . . . . . . . . . . . . 41 Heaviest Build 56 | 11 32 34 34 48 55 56 27 22 34 41 38 32 30 23 30 Greatest Support 132 | 40 40 10 20 52 60 132 30 41 62 54 45 37 37 26 41 Greatest Overweight (x) 8 | . 3 3 3 1 1 8 . 7 1 . . . . . 1 Average Overweight (x) . | . 1 3 1 . . . . . . . . . . . . Largest Inventory Capacity 15 | 8 15 15 15 15 15 15 15 5 5 5 5 5 5 5 5 Average Capacity 10 | 6 14 15 15 15 15 15 6 5 5 5 5 5 5 5 5 Most Carried 15 | 3 15 15 15 15 15 15 11 5 5 3 4 5 5 3 5 Average Carried 9 | 1 10 14 14 13 13 13 5 4 4 2 2 3 4 3 4 Final Capacity 15 | 8 15 15 15 15 15 15 5 5 5 5 5 5 5 5 5 Final Carried 15 | 2 15 15 15 15 14 12 5 5 4 2 2 5 3 3 5 Class Distribution -------------------- 43% | Mutant 24% | Hacker-Mutant 11% | Scavenger-Mutant 7% | Bothacker-Mutant 6% | Hacker-Sprinter 4% | Hacker-Ninja Dominant Class ---------------- Mutant | -10/Materials Mutant | -10/Mines Mutant | -10/Subcaves Mutant | -8/Materials Mutant | -8/Garrison Bothacker-Mutant | -7/Factory Mutant | -7/Waste Hacker-Mutant | -7/Factory Hacker-Mutant | -6/Factory Hacker-Mutant | -5/Factory Hacker-Mutant | -5/Garrison Hacker-Mutant | -5/Factory Hacker-Ninja | -5/Upper Caves Hacker-Sprinter | -5/Upper Caves Hacker-Sprinter | -4/Factory Resources | -11 -10 -10 -10 -8 -8 -7 -7 -7 -6 -5 -5 -5 -5 -5 -4 ----------- Run | Yrd Mat Min Sub Mat Gar Fac Was Fac Fac Fac Gar Fac Upp Upp Fac Matter Collected 2977 | 214 229 10 88 759 154 511 150 220 144 18 20 111 274 . 75 Remotely . | . . . . . . . . . . . . . . . . Salvage Created 4803 | . 387 . 86 1174 818 1133 . 134 168 28 160 111 454 . 150 Parts 250 | . 20 . 3 70 37 52 . 8 10 3 11 7 6 . 23 Haulers Intercepted 3 | . . . . 2 . 1 . . . . . . . . . Recyclers Shooed 1 | . . . . . . 1 . . . . . . . . . Parts Field Recycled . | . . . . . . . . . . . . . . . . Retrieved Matter . | . . . . . . . . . . . . . . . . Parts Self-Destructed 7 | . . . 4 . . . . . . . . . 3 . . Prevented . | . . . . . . . . . . . . . . . . Parts Restored . | . . . . . . . . . . . . . . . . Kills | -11 -10 -10 -10 -8 -8 -7 -7 -7 -6 -5 -5 -5 -5 -5 -4 ------- Run | Yrd Mat Min Sub Mat Gar Fac Was Fac Fac Fac Gar Fac Upp Upp Fac Combat Hostiles Destroyed 103 | . 8 . 2 29 18 23 . 5 4 . 6 2 . . 6 Melee 1 | . . . . . . . . . . . . 1 . . . Guns 48 | . 8 . 2 17 3 7 . 5 4 . 1 1 . . . Cannons 39 | . . . . 11 13 15 . . . . . . . . . AOE 12 | . . . . . . 1 . . . . 5 . . . 6 Classes Destroyed 14 | . 2 . 1 6 . 2 . . 1 . . 1 . . 1 Worker 1 | . . . . . . 1 . . . . . . . . . Builder 2 | . . . . . . . . . . . . . . . 2 Tunneler 2 | . . . . . . . . . . . . 1 . . 1 Hauler 3 | . . . . 2 . 1 . . . . . . . . . Mechanic 1 | . . . . . . . . . 1 . . . . . . Operator 3 | . . . . 1 . . . . . 1 . . . . 1 Watcher 4 | . 1 . . . . 1 . . . 1 . . . . 1 Swarmer 25 | . . . . 10 3 . . 5 3 . 4 . . . . Cutter 7 | . . . . 3 . . . . . . . 1 . . 3 Grunt 41 | . 8 . . 10 9 12 . . . . 2 . . . . Sentry 12 | . . . . 5 4 3 . . . . . . . . . Hunter 5 | . . . . 1 2 2 . . . . . . . . . Programmer 11 | . . . . . . 6 . . 1 . . 1 . . 3 Subdweller 2 | . . . 2 . . . . . . . . . . . . Best Kill Streak 8 | . 2 . 2 4 8 6 . 3 3 1 6 1 . . 3 Combat Bots Only 8 | . 2 . 2 4 8 6 . 3 3 . 6 1 . . 2 Max Kills in Single Turn 3 | . 1 . 1 1 1 1 . 1 1 1 3 1 . . 3 Gunslinging . | . . . . . . . . . . . . . . . . Exploded 3 | . . . . . . 1 . . . . 3 . . . 2 Melee 1 | . . . . . . . . . . . . 1 . . . Uniques/NPCs Destroyed . | . . . . . . . . . . . . . . . . Combat | -11 -10 -10 -10 -8 -8 -7 -7 -7 -6 -5 -5 -5 -5 -5 -4 -------- Run | Yrd Mat Min Sub Mat Gar Fac Was Fac Fac Fac Gar Fac Upp Upp Fac Hostile Shots Fired 1386 | . 58 . 58 158 142 372 2 92 108 4 80 74 43 . 195 Missed 508 | . 20 . 17 34 39 113 . 49 45 2 26 24 25 . 114 Hits 878 | . 38 . 41 124 103 259 2 43 63 2 54 50 18 . 81 Melee 45 | . . . . 13 . . 2 . . . . 16 . . 14 Projectile 833 | . 38 . 41 111 103 259 . 43 63 2 54 34 18 . 67 AOE 5 | . . . . . . 1 . . . . . 2 . . 2 Critical Strikes 48 | . 3 . 2 9 6 4 . . 1 1 2 11 1 . 8 Actively Blocked 3 | . . . . . . . . . . . . 3 . . . Part Disruptions 1 | . . . . . . . . . . . . 1 . . . Damage Taken 13691 | . 495 . 621 1773 1335 3661 88 466 671 129 1005 1152 319 . 1976 Core 2990 | . 66 . 73 171 139 495 . 85 89 26 263 340 81 . 1162 Absorbed by Shields 309 | . . . . . . . . 64 55 44 146 . . . . Redirected to Shielding 283 | . . . . . . 70 . . . . . 213 . . . Regen/Repaired (Parts) 333 | . 122 . . . . . . . . . . . . . 211 Core Remaining (%) 53 | 100 . . 44 . 43 . . 17 89 . . . . 29 . Volleys Fired 422 | . 40 . 13 119 56 89 1 22 29 4 18 18 2 . 11 Largest 2 | . 2 . 2 2 2 2 1 1 2 2 1 2 1 . 1 Hottest 141 | . 70 . 46 90 130 130 5 28 51 71 69 141 69 . 49 Shots Fired 731 | . 80 . 26 221 109 166 1 22 44 8 18 23 2 . 11 Gun 432 | . 80 . 26 148 23 56 . 12 43 4 15 23 2 . . Cannon 267 | . . . . 73 86 108 . . . . . . . . . Launcher 18 | . . . . . . . . . . 4 3 . . . 11 Special 14 | . . . . . . 2 1 10 1 . . . . . . Kinetic 357 | . 50 . 26 135 23 51 . 12 43 4 13 . . . . Thermal 335 | . 30 . . 86 86 111 . . . . 2 18 2 . . Explosive 18 | . . . . . . . . . . 4 3 . . . 11 Electromagnetic 7 | . . . . . . 2 . . . . . 5 . . . Robot Hit Streak 17 | . 8 . 6 12 12 17 3 7 8 7 8 3 1 . 2 Robot Miss Streak 9 | . 4 . 1 9 4 6 . 2 3 2 1 8 1 . 3 Penetration Max . | . . . . . . . . . . . . . . . . Secondary Targets 2 | . . . . 2 . . . . . . . . . . . Max Gunslinging Chain 1 | . . . . 1 . . . . . . . . . . . Shots Hit Robots 485 | . 44 . 19 125 56 134 1 18 32 5 13 23 12 . 3 Core Hits 260 | . 20 . 5 48 26 113 . 6 9 2 9 4 4 . 14 Critical Kills 4 | . . . . 2 1 . . 1 . . . . . . . Critical Parts Destroyed 1 | . . . . . . . . . 1 . . . . . . Critical Strikes 11 | . 1 . . 2 1 . . 1 1 . . 5 . . . Burn 2 | . 1 . . . . . . . . . . 1 . . . Meltdown 2 | . . . . 1 1 . . . . . . . . . . Destroy 3 | . . . . 1 . . . 1 1 . . . . . . Sever 4 | . . . . . . . . . . . . 4 . . . Melee Attacks 34 | . . . . . . . . . . . . 16 12 . 6 Impact . | . . . . . . . . . . . . . . . . Slashing 34 | . . . . . . . . . . . . 16 12 . 6 Piercing . | . . . . . . . . . . . . . . . . Sneak Attacks 2 | . . . . . . . . . . . . 2 . . . Combat Hostiles . | . . . . . . . . . . . . . . . . Follow-up Attacks . | . . . . . . . . . . . . . . . . Damage Inflicted 13067 | . 497 . 288 2476 1450 3402 . 195 622 191 789 568 751 . 1838 Guns 4765 | . 497 . 285 1355 151 1162 . 195 622 54 211 213 20 . . Cannons 4620 | . . . . 1099 1299 2222 . . . . . . . . . Explosions 2475 | . . . . . . . . . . 137 578 . . . 1760 Melee 1140 | . . . . . . . . . . . . 343 731 . 66 Ramming 67 | . . . 3 22 . 18 . . . . . 12 . . 12 Kinetic 4077 | . 283 . 285 1223 151 1053 . 195 622 54 211 . . . . Thermal 5583 | . 214 . . 1231 1299 2295 . . . . . 192 20 . 332 Explosive 2143 | . . . . . . . . . . 137 578 . . . 1428 Electromagnetic 57 | . . . . . . 36 . . . . . 21 . . . Impact . | . . . . . . . . . . . . . . . . Slashing 1140 | . . . . . . . . . . . . 343 731 . 66 Piercing . | . . . . . . . . . . . . . . . . Highest Corruption 13 | . . . . . . 10 10 10 3 . . 9 9 9 13 Average Corruption 6 | . . . . . . 7 10 10 1 . . 3 9 9 11 Corruption Purged 3 | . . . . . . . . . 3 . . . . . . Corruption Blocked . | . . . . . . . . . . . . . . . . Effects 70 | . . . . . . 5 11 19 6 . . 4 14 1 10 Message Errors 14 | . . . . . . 3 3 4 2 . . . 1 . 1 Matter Fused 13 | . . . . . . . . 2 2 . . 1 7 . 1 Heat Flow Errors 7 | . . . . . . . 1 4 . . . . 1 . 1 Energy Discharges 10 | . . . . . . 1 . 3 1 . . 2 2 1 . Parts Rejected 3 | . . . . . . . 1 2 . . . . . . . Data Loss (minor) 5 | . . . . . . . . 1 . . . 1 1 . 2 Data Loss (major) 3 | . . . . . . . . 1 1 . . . . . 1 Misfires 1 | . . . . . . 1 . . . . . . . . . Alerts 3 | . . . . . . . 1 . . . . . 2 . . Misdirections 11 | . . . . . . . 5 2 . . . . . . 4 Overload Shots . | . . . . . . . . . . . . . . . . Overflow Damage 587 | . . . . 7 13 31 . . . 40 36 46 263 . 151 Projectiles 51 | . . . . 7 13 31 . . . . . . . . . Explosions 176 | . . . . . . . . . . 40 36 . . . 100 Melee 360 | . . . . . . . . . . . . 46 263 . 51 Knockbacks 1 | . . . . 1 . . . . . . . . . . . Impact 1 | . . . . 1 . . . . . . . . . . . Kinetic . | . . . . . . . . . . . . . . . . Secondary . | . . . . . . . . . . . . . . . . Self-Inflicted Damage 513 | . . . . . . . . . . 71 133 6 . . 303 Shots 10 | . . . . . . . . . . 1 3 . . . 6 Rammed 9 | . . . 3 . . 3 . . . . . 1 . . 2 Targets Rammed 13 | . . . 3 4 . 3 . . . . . 1 . . 2 Kicked 4 | . . . . 4 . . . . . . . . . . . Crushed . | . . . . . . . . . . . . . . . . Highest Temperature 292 | . 228 . . 240 249 106 98 242 . . 271 292 150 . 128 Average Temperature 78 | . 81 . . 82 96 26 50 98 . . 133 90 54 . 20 Received Heat Transfer 3380 | . 336 . 120 522 567 843 . 69 57 6 668 9 138 . 45 Siege Activations . | . . . . . . . . . . . . . . . . Martial Activations . | . . . . . . . . . . . . . . . . Shielding Activations . | . . . . . . . . . . . . . . . . Robots Disrupted . | . . . . . . . . . . . . . . . . Combat Hostiles . | . . . . . . . . . . . . . . . . Robots Corrupted . | . . . . . . . . . . . . . . . . Combat Hostiles . | . . . . . . . . . . . . . . . . Parts Fried . | . . . . . . . . . . . . . . . . Impact Corruptions . | . . . . . . . . . . . . . . . . Robots Melted 3 | . . . . 1 2 . . . . . . . . . . Combat Hostiles 3 | . . . . 1 2 . . . . . . . . . . Parts Melted 14 | . 2 . . 2 2 8 . . . . . . . . . Heat Transferred 7997 | . 703 . . 1776 1776 3135 . . . . . 370 37 . 200 Parts Sabotaged . | . . . . . . . . . . . . . . . . Parts Stolen . | . . . . . . . . . . . . . . . . Parts Stripped . | . . . . . . . . . . . . . . . . Power Chain Reactions . | . . . . . . . . . . . . . . . . Alert | -11 -10 -10 -10 -8 -8 -7 -7 -7 -6 -5 -5 -5 -5 -5 -4 ------- Run | Yrd Mat Min Sub Mat Gar Fac Was Fac Fac Fac Gar Fac Upp Upp Fac Maximum Alert Level 3 | . . . . 1 2 2 . . . . 1 . . . 3 Low Security (%) 56 | 100 100 100 . 54 . . 100 100 100 100 37 100 . . 58 Level 1 25 | . . . . 45 18 77 . . . . 62 . . . 11 Level 2 17 | . . . . . 81 22 . . . . . . . . 24 Level 3 . | . . . . . . . . . . . . . . . 5 Level 4 . | . . . . . . . . . . . . . . . . Level 5 . | . . . . . . . . . . . . . . . . High Security . | . . . . . . . . . . . . . . . . Max Security . | . . . . . . . . . . . . . . . . Peak Influence 768 | . 60 . . 352 636 438 107 77 55 185 351 173 . . 768 Initial 333 | . . . . . 221 333 107 . 28 9 105 173 . . 11 Average 188 | . 12 . . 146 524 330 40 14 16 77 240 56 . . 218 Influence Increases 4869 | . 256 . 30 848 515 703 . 218 284 220 316 143 185 . 1151 Destroy 0b10 Robot/C 2100 | . 160 . . 580 360 460 . 140 100 . 120 40 . . 140 Destroy 0b10 Robot/NC 125 | . 5 . . 15 . 20 . 5 5 10 . 5 35 . 25 Destroy Leader 386 | . 32 . . 134 . 116 . 30 20 2 10 10 . . 32 Allied During Kill 19 | . . . . . . 4 . 3 5 . . . . . 7 Successful Hack 235 | . 28 . . 25 . 21 . 10 32 . 8 58 . . 53 Select Force Hacks 30 | . . . . . . . . . . . . . . . 30 Disable Machine 345 | . 15 . . 30 15 . . . . 75 . . . . 210 Anti-Garrison Action 200 | . . . . . 100 . . . . . 100 . . . . Destroy Structure 514 | . 1 . . 34 10 7 . . 2 118 78 . . . 264 Partial Spotted 105 | . . . . . . 15 . . 15 . . 15 . . 60 Lose Combat Pursuer 810 | . 15 . 30 30 30 60 . 30 105 15 . 15 150 . 330 Influence Decreases 4117 | . 256 . 30 508 219 1031 308 159 323 90 135 454 145 42 417 Entered New Map 895 | . . . . . 119 303 201 . 31 11 45 158 8 12 7 Time Decay 2371 | . 246 . 10 478 . 498 87 104 246 59 . 266 117 30 230 Lost Part 728 | . 10 . 20 30 100 210 20 20 18 20 90 30 20 . 140 Lost Ally 123 | . . . . . . 20 . 35 28 . . . . . 40 Squads Dispatched 42 | . . . . 6 . 10 . 2 6 2 . 3 . . 13 Investigation 7 | . . . . 2 . . . 1 1 1 . . . . 2 Extermination 9 | . . . . . . 3 . 1 2 . . 1 . . 2 Reinforcement 17 | . . . . 3 . 4 . . 2 1 . 2 . . 5 Assault 4 | . . . . . . . . . . . . . . . 4 Garrison 5 | . . . . 1 . 3 . . 1 . . . . . . Intercept . | . . . . . . . . . . . . . . . . Searches Triggered . | . . . . . . . . . . . . . . . . Construction Impeded 4 | . . . . . . 2 . . . . . 1 . . 1 Haulers Reinforced 4 | . . . . . . 1 . . 1 . . . . . 2 Active Scanning Responses . | . . . . . . . . . . . . . . . . Cargo Convoy Interrupts 2 | . . . . . . 1 . . . . . . . . 1 Stealth | -11 -10 -10 -10 -8 -8 -7 -7 -7 -6 -5 -5 -5 -5 -5 -4 --------- Run | Yrd Mat Min Sub Mat Gar Fac Was Fac Fac Fac Gar Fac Upp Upp Fac Distress Signals 5 | . 1 . . 2 . 1 . 1 . . . . . . . Communications Jammed . | . . . . . . . . . . . . . . . . Distress Signals . | . . . . . . . . . . . . . . . . Times Spotted 283 | . 14 . 6 40 19 52 6 19 18 10 8 10 15 . 66 Peak Tracking Total 18 | . 4 . 4 5 5 10 4 8 6 8 5 2 10 . 18 Tactical Retreats 35 | . 1 . 1 2 2 2 1 2 3 1 . 5 2 . 13 ECM-based Alert Blocks 20 | . . . . . . . . . . . . 4 5 . 11 Traps | -11 -10 -10 -10 -8 -8 -7 -7 -7 -6 -5 -5 -5 -5 -5 -4 ------- Run | Yrd Mat Min Sub Mat Gar Fac Was Fac Fac Fac Gar Fac Upp Upp Fac Traps Triggered 10 | . . . . 2 2 3 . . 1 . 2 . . . . Indirectly . | . . . . . . . . . . . . . . . . Trap Hack Attempts . | . . . . . . . . . . . . . . . . Triggered . | . . . . . . . . . . . . . . . . Disarmed . | . . . . . . . . . . . . . . . . Reprogrammed . | . . . . . . . . . . . . . . . . Reused . | . . . . . . . . . . . . . . . . Traps Extracted . | . . . . . . . . . . . . . . . . Installed . | . . . . . . . . . . . . . . . . Triggered . | . . . . . . . . . . . . . . . . Objects Rigged 3 | . . . . . . . . . . . . . . . 3 Exploded 1 | . . . . . . . . . . . . . . . 1 Machines | -11 -10 -10 -10 -8 -8 -7 -7 -7 -6 -5 -5 -5 -5 -5 -4 ---------- Run | Yrd Mat Min Sub Mat Gar Fac Was Fac Fac Fac Gar Fac Upp Upp Fac Machines Disabled 27 | . 1 . . 2 3 . . . . 5 2 . . . 14 Max in Single Turn 4 | . 1 . . 1 1 . . . . 3 1 . . . 4 Garrison Access 4 | . . . . . . . . . . . . 2 . . 2 Garrison Relay 4 | . . . . . 2 . . . . . 2 . . . . Machines Repaired . | . . . . . . . . . . . . . . . . Machines Dismantled . | . . . . . . . . . . . . . . . . Machines Sabotaged . | . . . . . . . . . . . . . . . . Overloaded Fab Kills . | . . . . . . . . . . . . . . . . Hacking | -11 -10 -10 -10 -8 -8 -7 -7 -7 -6 -5 -5 -5 -5 -5 -4 --------- Run | Yrd Mat Min Sub Mat Gar Fac Was Fac Fac Fac Gar Fac Upp Upp Fac Machines Accessed 69 | . 8 . . 11 2 5 . 6 12 4 1 7 . 1 12 Terminals 41 | . 7 . . 10 2 4 . 4 4 2 1 1 . . 6 Fabricators 3 | . . . . . . . . . 1 1 . 1 . . . Repair Stations 5 | . 1 . . . . . . 1 2 . . . . . 1 Recycling Units 9 | . . . . . . . . 1 3 . . 2 . . 3 Scanalyzers 4 | . . . . . . 1 . . 1 . . 1 . . 1 Garrison Access 6 | . . . . 1 . . . . 1 1 . 2 . . 1 Total Hacks 193 | . 26 . . 33 2 9 . 11 35 12 2 19 . 1 43 Successful 117 | . 15 . . 15 1 2 . 3 23 6 1 18 . 1 32 Failed 76 | . 11 . . 18 1 7 . 8 12 6 1 1 . . 11 Catastrophic 17 | . 2 . . 4 1 3 . 1 1 2 . . . . 3 Database Lockouts . | . . . . . . . . . . . . . . . . Manual 113 | . 26 . . 30 . 7 . 6 12 10 2 2 . . 18 Terminals 120 | . 23 . . 31 2 8 . 9 12 10 2 2 . . 21 Fabricators 6 | . . . . . . . . . 3 1 . 2 . . . Repair Stations 18 | . 3 . . . . . . 1 4 . . . . . 10 Recycling Units 31 | . . . . . . . . 1 11 . . 10 . . 9 Scanalyzers 8 | . . . . . . 1 . . 3 . . 3 . . 1 Garrison Access 9 | . . . . 2 . . . . 2 1 . 2 . . 2 Terminal Hacks 28 | . 7 . . 3 1 1 . 1 4 1 . . . 1 9 Part Schematic 1 | . . . . . . . . . . . . . . . 1 Robot Analysis 2 | . 2 . . . . . . . . . . . . . . Prototype ID Bank 3 | . 2 . . 1 . . . . . . . . . . . Open Door 1 | . . . . . . . . . . . . . . 1 . Open DSF 4 | . . . . . . 1 . 1 1 . . . . . 1 Level Access Points 1 | . . . . . . . . . . . . . . . 1 Branch Access Points 3 | . 1 . . 1 . . . . . . . . . . 1 Emergency Access Points 1 | . . . . . . . . . . . . . . . 1 Machine Index 1 | . . . . . . . . . 1 . . . . . . Terminal Index 5 | . 1 . . 1 . . . . 1 1 . . . . 1 Scanalyzer Index 1 | . . . . . . . . . 1 . . . . . . Locate Traps 1 | . . . . . . . . . . . . . . . 1 Recall Extermination 1 | . . . . . . . . . . . . . . . 1 Hauler Manifests 1 | . 1 . . . . . . . . . . . . . . Zone Layout 1 | . . . . . . . . . . . . . . . 1 Security Stations 1 | . . . . . 1 . . . . . . . . . . Fabricator Hacks 5 | . . . . . . . . . 2 1 . 2 . . . Network Status 3 | . . . . . . . . . 1 1 . 1 . . . Build 2 | . . . . . . . . . 1 . . 1 . . . Repair Station Hacks 14 | . 3 . . . . . . . 1 . . . . . 10 Scan Component 6 | . 1 . . . . . . . . . . . . . 5 Repair 6 | . 1 . . . . . . . . . . . . . 5 Refit 2 | . 1 . . . . . . . 1 . . . . . . Recycling Unit Hacks 27 | . . . . . . . . 1 10 . . 10 . . 6 Recycle Component 4 | . . . . . . . . . 2 . . 2 . . . Process 7 | . . . . . . . . . 3 . . 3 . . 1 Report Inventory 6 | . . . . . . . . 1 3 . . 1 . . 1 Retrieve Matter 7 | . . . . . . . . . 2 . . 4 . . 1 Retrieve Components 3 | . . . . . . . . . . . . . . . 3 Scanalyzer 4 | . . . . . . 1 . . 1 . . 2 . . . Retrieve Study 4 | . . . . . . 1 . . 1 . . 2 . . . Garrison Access Hacks 5 | . . . . 1 . . . . 1 1 . 2 . . . Unlock Access 2 | . . . . 1 . . . . . 1 . . . . . Seal Access 2 | . . . . . . . . . . . . 2 . . . Coupler Status 1 | . . . . . . . . . 1 . . . . . . Unauthorized Hacks 34 | . 5 . . 11 . . . 1 4 3 1 2 . . 7 Terminals 30 | . 5 . . 11 . . . 1 3 3 1 2 . . 4 Track 5 | . . . . 3 . . . . . . 1 1 . . . Botnet 22 | . 4 . . 8 . . . 1 3 2 . 1 . . 3 Detonate 1 | . . . . . . . . . . . . . . . 1 Operators 2 | . 1 . . . . . . . . 1 . . . . . Fabricators . | . . . . . . . . . . . . . . . . Repair Stations . | . . . . . . . . . . . . . . . . Recycling Units 1 | . . . . . . . . . . . . . . . 1 Tunnel 1 | . . . . . . . . . . . . . . . 1 Scanalyzers . | . . . . . . . . . . . . . . . . Garrison Access 3 | . . . . . . . . . 1 . . . . . 2 Redirect 1 | . . . . . . . . . . . . . . . 1 Reprogram 2 | . . . . . . . . . 1 . . . . . 1 Data Cores Recovered . | . . . . . . . . . . . . . . . . Used . | . . . . . . . . . . . . . . . . Hacking Detections 54 | . 8 . . 11 1 5 . 6 7 3 1 4 . . 8 Full Trace Events 4 | . 1 . . 1 . . . 1 . 1 . . . . . Feedback Events . | . . . . . . . . . . . . . . . . Feedback Blocked . | . . . . . . . . . . . . . . . . Robot Schematics Acquired . | . . . . . . . . . . . . . . . . Robots Built . | . . . . . . . . . . . . . . . . Authchips . | . . . . . . . . . . . . . . . . Time 81 | . . . . . . . . . . . . 81 . . . Total Robot Build Rating . | . . . . . . . . . . . . . . . . Part Schematics Acquired 1 | . . . . . . . . . . . . . . . 1 Parts Built 1 | . . . . . . . . . 1 . . . . . . Authchips . | . . . . . . . . . . . . . . . . Time 64 | . . . . . . . . . 64 . . . . . . Total Part Build Rating 8 | . . . . . . . . . 8 . . . . . . Part Studies Acquired 4 | . . . . . . 1 . . 1 . . 2 . . . Parts Repaired 6 | . 1 . . . . . . . . . . . . . 5 Time 294 | . 26 . . . . . . . . . . . . . 268 Parts Recycled 4 | . . . . . . . . . 2 . . 2 . . . Recycled Matter 531 | . . . . . . . . . 274 . . 81 . . 176 Retrieved Matter 526 | . . . . . . . . . 269 . . 81 . . 176 Retrieved Components . | . . . . . . . . . . . . . . . . Parts Scanalyzed . | . . . . . . . . . . . . . . . . Part Schematics Acquired . | . . . . . . . . . . . . . . . . Parts Damaged . | . . . . . . . . . . . . . . . . Bothacking | -11 -10 -10 -10 -8 -8 -7 -7 -7 -6 -5 -5 -5 -5 -5 -4 ------------ Run | Yrd Mat Min Sub Mat Gar Fac Was Fac Fac Fac Gar Fac Upp Upp Fac Used RIF Installer 1 | . . . . . 1 . . . . . . . . . . Robots Hacked 9 | . . . . . . 2 1 5 1 . . . . . . Non-combat 2 | . . . . . . . . 1 1 . . . . . . Combat 7 | . . . . . . 2 1 4 . . . . . . . Robot Hacks Applied 9 | . . . . . . 2 1 5 1 . . . . . . parse_system 1 | . . . . . . . 1 . . . . . . . . no_distress 1 | . . . . . . . . 1 . . . . . . . find_station 1 | . . . . . . . . . 1 . . . . . . overwrite_iff 3 | . . . . . . . . 3 . . . . . . . formatsys_high 3 | . . . . . . 2 . 1 . . . . . . . Relay Couplers Released 21 | . . . . . 10 . . . . . 10 . . . 1 Machine Destruction 21 | . . . . . 10 . . . . . 10 . . . 1 Attached 4 | . . . . . . 2 . 2 . . . . . . . Fabnet Peak Effective % . | . . . . . . . . . . . . . . . . Robots Rewired . | . . . . . . . . . . . . . . . . Allies Hacked . | . . . . . . . . . . . . . . . . Hacks Repelled . | . . . . . . . . . . . . . . . . Allies | -11 -10 -10 -10 -8 -8 -7 -7 -7 -6 -5 -5 -5 -5 -5 -4 -------- Run | Yrd Mat Min Sub Mat Gar Fac Was Fac Fac Fac Gar Fac Upp Upp Fac Total Allies 10 | . . . . . . 2 . 4 2 . . . . . 2 Largest Group 2 | . . . . . . 2 . 2 2 . . . . . 2 Highest-Rated Group 112 | . . . . . . 64 . 32 82 . . . . . 112 Highest-Rated Ally 56 | . . . . . . 32 . 32 41 . . . . . 56 Total Orders . | . . . . . . . . . . . . . . . . Ally Attacks 42 | . . . . . . 7 . 14 14 . . . . . 7 Total Damage 1529 | . . . . . . 214 . 277 526 . . . . . 512 Kills 6 | . . . . . . 1 . 3 1 . . . . . 1 Allies Corrupted . | . . . . . . . . . . . . . . . . Allies Melted . | . . . . . . . . . . . . . . . . Intel | -11 -10 -10 -10 -8 -8 -7 -7 -7 -6 -5 -5 -5 -5 -5 -4 ------- Run | Yrd Mat Min Sub Mat Gar Fac Was Fac Fac Fac Gar Fac Upp Upp Fac Active Infowar (turns) 3019 | . . . . 320 . . . 186 286 145 180 664 362 79 797 Optics 2513 | . . . . . . . . . 286 145 180 664 362 79 797 Sensors 636 | . . . . . . . . 186 . . . 260 190 . . T.N.C. 320 | . . . . 320 . . . . . . . . . . . ECM 623 | . . . . . . . . . . 1 . 294 52 . 276 Robot Analysis Total 2 | . 2 . . . . . . . . . . . . . . Derelict Logs Recovered 3 | . . 1 1 . . . . . . . . . 1 . . Drone Launches . | . . . . . . . . . . . . . . . . Drone Recoveries . | . . . . . . . . . . . . . . . . Exploration | -11 -10 -10 -10 -8 -8 -7 -7 -7 -6 -5 -5 -5 -5 -5 -4 ------------- Run | Yrd Mat Min Sub Mat Gar Fac Was Fac Fac Fac Gar Fac Upp Upp Fac Turns Passed 8863 | 87 870 99 152 1523 1099 1321 219 444 752 145 180 664 362 79 867 Spaces Moved 8736 | 56 496 77 52 929 526 599 280 702 1241 281 236 899 706 246 1410 Core 112 | 15 . . . . . 1 . 1 . . . . . . 95 Treads 1241 | 41 184 . 36 . 400 580 . . . . . . . . . Legs 1064 | . 1 . . 929 126 8 . . . . . . . . . Wheels 414 | . 311 77 16 . . 10 . . . . . . . . . Hover 3357 | . . . . . . . 280 581 1241 281 236 738 . . . Flight 2548 | . . . . . . . . 120 . . . 161 706 246 1315 Fastest Speed 26 | 50 125 125 125 112 115 105 52 26 44 45 48 34 32 32 29 Average Speed 74 | 130 138 125 201 118 172 162 55 50 47 45 49 48 34 32 33 Slowest Speed 450 | 160 190 125 240 190 245 450 60 435 116 48 51 51 37 32 112 Overloaded Moves . | . . . . . . . . . . . . . . . . Propulsion Burnouts . | . . . . . . . . . . . . . . . . Robots Hopped 10 | . . . . . . . . . . . . 5 . . 5 Potential Cave-ins 2 | . . . . . . . . . . . . . . . 2 Cave-ins Triggered . | . . . . . . . . . . . . . . . . Exploration Rate (%) 37 | 3 76 20 5 70 54 20 85 22 26 8 37 20 80 34 37 Regions Visited 15 Branch Regions 4 Pre-discovered Areas 2 | . . . 1 . . . . . . . . . . . 1 Known Exits Taken 7 | . 1 1 . 1 . . . . . 1 . 1 1 1 . Unknown Exits Taken 4 | 1 . . 1 . . . . 1 1 . . . . . . Scrap Searched 6 | . . 1 . . . . . . . . . . 3 2 . Spaces Dug 9 | . . . . 4 . . . . . . . . . . 5 Terrain Destroyed 295 | . . . . 30 . 3 . . . 57 48 . . . 157 Melee 5 | . . . . . . . . . . . . . . . 5 Projectile 33 | . . . . 30 . 3 . . . . . . . . . AOE 257 | . . . . . . . . . . 57 48 . . . 152 Terrain Rammed . | . . . . . . . . . . . . . . . . Walls Destroyed . | . . . . . . . . . . . . . . . . Machines Disabled . | . . . . . . . . . . . . . . . . Actions | -11 -10 -10 -10 -8 -8 -7 -7 -7 -6 -5 -5 -5 -5 -5 -4 --------- Run | Yrd Mat Min Sub Mat Gar Fac Was Fac Fac Fac Gar Fac Upp Upp Fac Total 10413 | 71 611 80 69 1205 642 793 344 777 1364 288 279 1068 798 245 1779 Wait 741 | . 30 . . 63 25 31 40 2 46 2 5 103 73 . 321 Move 8700 | 55 495 76 51 928 524 599 279 701 1240 280 234 888 705 245 1400 Hop 10 | . . . . . . . . . . . . 5 . . 5 Pick Up 163 | 8 24 1 1 33 14 24 1 15 14 . 3 18 . . 7 Fast Attach 48 | . . 1 . 4 . 5 7 8 7 . . 4 2 . 10 Attach 127 | 7 7 . 1 23 13 21 6 15 8 2 3 13 2 . 6 Detach 34 | 1 4 . . 8 3 4 5 4 1 . . . . . 4 Swap 14 | . 3 . . 3 . 4 . 2 1 . . 1 . . . Drop 83 | . 8 2 . 20 5 13 5 8 14 . . 1 . . 7 Fire 422 | . 40 . 13 119 56 89 1 22 29 4 18 18 2 . 11 Melee 34 | . . . . . . . . . . . . 16 12 . 6 Ram 3 | . . . . . . . . . . . . 1 . . 2 Kick 4 | . . . . 4 . . . . . . . . . . . Crush 6 | . . . 3 . . 3 . . . . . . . . . Escape Stasis 22 | . . . . . 2 . . . 4 . 16 . . . . Rewire 2 | . . . . . . . . . . . . . 2 . . Trap . | . . . . . . . . . . . . . . . . Miscellaneous . | . . . . . . . . . . . . . . . . Route ------- -11/Scrapyard -10/Materials (discovered 5 exits: [*Mat x2] / *Min x2 / *Sub) -10/Mines -10/Subcaves -8/Materials (discovered 3 exits: *Fac x2 / Gar) -8/Garrison -7/Factory -7/Waste -7/Factory -6/Factory (discovered 2 exits: *Fac / [*Low]) -5/Factory (discovered 2 exits: *Fac / Gar) -5/Garrison -5/Factory -5/Upper Caves -5/Upper Caves -4/Factory (discovered 6 exits: *Res x4 / Upp x2) History --------- Turn | Location | Event 10 | -11/Scrapyard | Discovered new exit (range 16) 88 | -11/Scrapyard | Entered Materials 303 | -10/Materials | Build established: Mutant 457 | -10/Materials | Discovered new exit (range 12) 547 | -10/Materials | Identified exit to Mines 583 | -10/Materials | Discovered new exit (range 8) 771 | -10/Materials | Repaired Lgt. Treads 854 | -10/Materials | Discovered new exit (range 8) 889 | -10/Materials | Discovered new exit (range 15) 958 | -10/Materials | Entered Mines 999 | -10/Mines | Identified exit to Subcaves 1057 | -10/Mines | Entered Subcaves 1058 | -10/Subcaves | Approached by a straggling Scientist 1066 | -10/Subcaves | Learned location of Zion (-6) 1174 | -10/Subcaves | Discovered new exit (range 10) 1194 | -10/Subcaves | Core integrity fell below 50% 1209 | -10/Subcaves | Entered Materials 1209 | -8/Materials | Evolved 4 slots: Propulsion x2, Utility x2 1236 | -8/Materials | Lost 3 parts (1p2w) 1771 | -8/Materials | Discovered new exit (range 3) 2055 | -8/Materials | Build established: Scavenger-Mutant 2583 | -8/Materials | Build established: Mutant 2593 | -8/Materials | Discovered new exit (range 11) 2666 | -8/Materials | Garrison activated, responded to threat 2731 | -8/Materials | Identified exit to Garrison 2732 | -8/Materials | Entered Garrison 2786 | -8/Garrison | Triggered checkpoint 2811 | -8/Garrison | Garrison Relay disabled 2872 | -8/Garrison | Triggered checkpoint 2878 | -8/Garrison | Triggered checkpoint 2908 | -8/Garrison | Triggered checkpoint 2914 | -8/Garrison | Core integrity fell below 50% 2930 | -8/Garrison | Triggered checkpoint 2965 | -8/Garrison | Destroyed 8 combat bots 2969 | -8/Garrison | Lost 6 parts (2n2u2w) 3098 | -8/Garrison | Triggered checkpoint 3237 | -8/Garrison | Garrison Relay disabled 3256 | -8/Garrison | Triggered checkpoint 3303 | -8/Garrison | Installed Relay Interface Framework 3330 | -8/Garrison | Learned Factory security intel 3815 | -8/Garrison | Discovered new exit (range 8) 3831 | -8/Garrison | Entered Factory 3831 | -7/Factory | Evolved 2 slots: Propulsion x1, Utility x1 3860 | -7/Factory | Build established: Scavenger-Mutant 3942 | -7/Factory | Identified exit to DSF 4457 | -7/Factory | Build established: Bothacker-Mutant 4615 | -7/Factory | Discovered new exit (range 14) 4660 | -7/Factory | Garrison activated, responded to threat 4713 | -7/Factory | Lost 3 parts (1p1n1w) 5047 | -7/Factory | Cargo convoy interrupted 5088 | -7/Factory | Core integrity fell below 50% 5097 | -7/Factory | System corruption reached 10% 5116 | -7/Factory | Build established: Mutant 5152 | -7/Factory | Sucked down chute 5152 | -7/Factory | Entered Waste 5164 | -7/Waste | Spotted C-40 Crusher 5167 | -7/Waste | Lost 15 parts (2p7n1u5w) 5169 | -7/Waste | Spotted C-40 Crusher 5181 | -7/Waste | Crushed by Compactor (1 part destroyed, 1 dropped) 5224 | -7/Waste | Spotted C-40 Crusher 5302 | -7/Waste | Spotted C-40 Crusher 5338 | -7/Waste | Crushed by Compactor (1 part destroyed, 2 dropped) 5345 | -7/Waste | Spotted C-40 Crusher 5346 | -7/Waste | Spotted C-40 Crusher 5359 | -7/Waste | Discovered new exit (range 14) 5371 | -7/Waste | Entered Factory 5757 | -7/Factory | Core integrity fell below 20% 5808 | -7/Factory | Discovered new exit (range 6) 5815 | -7/Factory | Entered another Factory area 5815 | -6/Factory | Evolved 2 slots: Power x1, Utility x1 5927 | -6/Factory | Build established: Hacker-Mutant 6036 | -6/Factory | Discovered new exit (range 4) 6109 | -6/Factory | Discovered new exit (range 8) 6152 | -6/Factory | Fabricated Antigrav Array? 6384 | -6/Factory | Spotted B-75 Beast 6441 | -6/Factory | Garrison activated, responded to threat 6567 | -6/Factory | Entered another Factory area 6567 | -5/Factory | Evolved 2 slots: Utility x2 6679 | -5/Factory | Discovered new exit (range 21) 6712 | -5/Factory | Identified exit to Garrison 6712 | -5/Factory | Entered Garrison 6740 | -5/Garrison | Triggered checkpoint 6743 | -5/Garrison | Garrison Relay disabled 6808 | -5/Garrison | Spotted B-75 Beast 6845 | -5/Garrison | Lost 6 parts (1p1n2u2w) 6866 | -5/Garrison | Garrison Relay disabled 6876 | -5/Garrison | Triggered checkpoint 6881 | -5/Garrison | Discovered new exit (range 19) 6892 | -5/Garrison | Entered Factory 6912 | -5/Factory | Lost 3 parts (1p1u1w) 7468 | -5/Factory | Core integrity fell below 50% 7513 | -5/Factory | Lost 3 parts (1n1u1w) 7545 | -5/Factory | Discovered new exit (range 16) 7555 | -5/Factory | Identified exit to Upper Caves 7556 | -5/Factory | Entered Upper Caves 7617 | -5/Upper Caves | Identified exit to Upper Caves 7918 | -5/Upper Caves | Entered another Upper Caves area 7950 | -5/Upper Caves | Discovered new exit (range 12) 7955 | -5/Upper Caves | Identified exit to Factory 7997 | -5/Upper Caves | Entered Factory 7997 | -4/Factory | Evolved 2 slots: Propulsion x1, Utility x1 8016 | -4/Factory | Spotted B-86 Titan 8032 | -4/Factory | Spotted B-86 Titan 8129 | -4/Factory | Repaired Cld. Aerolev Unit 8192 | -4/Factory | Repaired Nuclear Pulse Array+ 8225 | -4/Factory | Repaired VTOL Module 8227 | -4/Factory | Watched by a mysterious "MATRIX" hacker 8283 | -4/Factory | Repaired Mic. Fission Core 8328 | -4/Factory | Repaired Xenon Bombardment Thruster+ 8569 | -4/Factory | Cargo convoy interrupted 8632 | -4/Factory | Build established: Hacker-Sprinter 8708 | -4/Factory | Identified exit to Upper Caves 8711 | -4/Factory | Identified exit to Research 8769 | -4/Factory | System corruption reached 10% 8811 | -4/Factory | Core integrity fell below 50% 8824 | -4/Factory | Lost 11 parts (2p4n4u1w) 8839 | -4/Factory | Core integrity fell below 20% 8864 | -4/Factory | Destroyed by S-27 Virus with Autogun Last Messages --------------- lost. T-07 Excavator is excavating. K-01 Serf cleans the Nuclear Reactor. Slammed into P-70 Sage. S-27 Virus destroyed. Acquired VTOL Module. K-01 Serf collects debris. Acquired VTOL Module. VTOL Module destroyed. Chain reaction triggered in Lgt. Ion Engine. K-01 Serf destroyed. S-27 Virus destroyed. K-01 Serf collects debris. System corrupted: Component data lost. U-05 Engineer destroyed. K-01 Serf collects debris. K-01 Serf destroyed. VTOL Module destroyed. System corrupted: Component data lost. Knocked back. Map ----- +----------------------------------------------------+ | ?????????????????????????????????????# """""" | | ?????????????????????????????????????# """""" | | ?????????????????????????????????????# """""" | | ?????????????????????????????????????# """""" | | ?????????????????????????????????????# """""" | | ?????????????????????????????????????# """""" | | ?????????????????????????????????????# """""" ! | | ?????????????????????????????????????# """""" | | ?????????????????????????????????????# | | ???????????????????##????????????????# | | ??????????????????##T ########+###########"#+##### | | ????????????????? ! | | ????????????????? *%= !%! | | ???????????????? * | | ???????????????? | | ???????????????? H | | ???????????????????????#######/#############+##### | | ????????????????????????# ss #????? ??? | | ????????????????????????# #????? ? | | ????????????????????????# """" #????? | | ?